[Event "41st Jacques-Lemans-Open 2022"]
[Site "St. Veit/Glan"]
[Date "2022.07.10"]
[Round "3.2"]
[White "Rogic, Davor"]
[Black "Manhardt, Thomas"]
[Result "1-0"]
[ECO "B33"]
[WhiteElo "2474"]
[BlackElo "2227"]
[Annotator "RC"]
[PlyCount "99"]
[EventDate "2022.07.09"]
[EventType "swiss"]
[EventCountry "AUT"]
[SourceTitle "playchess.com"]
[Source "ChessBase"]
[SourceQuality "1"]
[TimeControl "40/5400+30:1800+30"]

1. e4 {[%emt 0:00:16]} c5 {[%emt 0:00:18]} 2. Nf3 {[%emt 0:00:07]} Nc6 {[%emt 0:00:17]} 3. d4 {[%emt 0:00:07]} cxd4 {[%emt 0:00:05]} 4. Nxd4 {[%emt 0:00:07]} Nf6 {[%emt 0:00:25]} 5. Nc3 {[%emt 0:00:06]} e5 {[%emt 0:00:27]} 6. Ndb5 {[%emt 0:00:06]} d6 {[%emt 0:00:06]} 7. Bg5 {[%emt 0:00:07]} a6 {[%emt 0:00:17]} 8. Na3 {[%emt 0:00:08]} Be6 {[%emt 0:00:33]} 9. Nc4 {[%emt 0:00:54]} Rb8 {[%emt 0:00:51]} 10. Bd3 {[%emt 0:03:32]} Be7 {[%emt 0:09:57]} 11. Bxf6 {[%emt 0:04:26]} Bxf6 {[%emt 0:00:09]} 12. O-O {[%emt 0:02:36]} O-O {[%emt 0:04:46]} 13. Ne3 {[%emt 0:04:15]} Bg5 {[%emt 0:01:32]} 14. Ned5 {[%emt 0:01:25]} b5 {[%emt 0:07:23]} 15. b4 {[%emt 0:09:06]} Rc8 {[%emt 0:15:59]} 16. Rb1 {[%emt 0:10:46]} Ne7 {[%emt 0:16:25]} 17. a4 {[%emt 0:01:22]} Bxd5 {[%emt 0:06:13]} 18. Nxd5 {[%emt 0:00:08]} Nxd5 {[%emt 0:00:07]} 19. exd5 {[%emt 0:00:04]} Qb6 {[%emt 0:05:11]} 20. axb5 {[%emt 0:09:53]} axb5 {[%emt 0:00:10]} 21. Qe2 {[%emt 0:03:11]} Rb8 {[%emt 0:02:38]} 22. Ra1 {[%emt 0:05:08]} Qd4 {[%emt 0:05:18]} 23. Rfb1 {[%emt 0:01:21]} Qxd5 {[%emt 0:03:15]} 24. Ra5 {[%emt 0:00:21]} Rfc8 {[%emt 0:05:07]} 25. Qg4 {[%emt 0:08:55]} Bd8 {[%emt 0:04:12]} 26. Rxb5 {[%emt 0:01:02]} Qe6 {[%emt 0:06:33]} 27. Qe4 {[%emt 0:04:55]} g6 {[%emt 0:01:16]} 28. Rxb8 {[%emt 0:00:33]} Rxb8 {[%emt 0:00:03]} 29. Bc4 {[%emt 0:00:59]} Qf6 {[%emt 0:02:46]} 30. Rb3 {[%emt 0:01:54]} Qf4 {[%emt 0:01:11]} 31. Qxf4 {[%emt 0:01:19]} exf4 {[%emt 0:00:02]} 32. Bd5 {[%emt 0:01:50]} Kg7 {[%emt 0:00:39]} 33. c4 {[%emt 0:01:46]} Bb6 {[%emt 0:01:05]} 34. Rf3 {[%emt 0:00:54]} g5 {[%emt 0:01:22]} 35. g3 {[%emt 0:00:18]} f5 {[%emt 0:00:41]} 36. gxf4 {[%emt 0:01:35]} g4 {[%emt 0:00:01]} 37. Rd3 {[%emt 0:00:34]} Kf6 {[%emt 0:00:58]} 38. Bc6 {[%emt 0:00:40]} Ke6 {[%emt 0:00:37]} 39. Rd2 {[%emt 0:00:52]} Ba7 {[%emt 0:00:31]} 40. b5 {[%emt 0:07:58]} Bc5 {[%emt 0:00:29]} 41. Re2+ {[%emt 0:31:00]} Kf6 {[%emt 0:13:00]} 42. Bd5 {[%emt 0:00:00]} h5 {[%emt 0:01:30]} 43. Re6+ {[%emt 0:00:00]} Kg7 {[%emt 0:00:02]} 44. Kg2 {[%emt 0:00:00]} h4 {[%emt 0:04:16]} 45. f3 {[%emt 0:00:00]} Rd8 {[%emt 0:04:12]} 46. fxg4 {[%emt 0:00:00]} fxg4 {[%emt 0:00:03]} 47. f5 {[%emt 0:00:00]} Kh7 {[%emt 0:06:15]} 48. Re4 {[%emt 0:00:00]} Kh6 {[%emt 0:02:13]} 49. Rxg4 {[%emt 0:00:00]} Rf8 {[%emt 0:00:44]} 50. Be4 {[%emt 0:00:00]} 1-0

[Event "41st Jacques-Lemans-Open 2022"]
[Site "St. Veit/Glan"]
[Date "2022.07.10"]
[Round "3.3"]
[White "Frank, Emanuel"]
[Black "Praznik, Niko"]
[Result "1/2-1/2"]
[ECO "A42"]
[WhiteElo "2160"]
[BlackElo "2325"]
[Annotator "RC"]
[PlyCount "75"]
[EventDate "2022.07.09"]
[EventType "swiss"]
[EventCountry "AUT"]
[SourceTitle "playchess.com"]
[Source "ChessBase"]
[SourceQuality "1"]
[TimeControl "40/5400+30:1800+30"]

1. d4 {[%emt 0:00:02]} g6 {[%emt 0:06:07]} 2. c4 {[%emt 0:00:13]} Bg7 {[%emt 0:00:08]} 3. Nc3 {[%emt 0:00:16]} d6 {[%emt 0:00:19]} 4. e4 {[%emt 0:00:25]} Nc6 {[%emt 0:00:13]} 5. d5 {[%emt 0:00:46]} Nd4 {[%emt 0:00:15]} 6. Be3 {[%emt 0:00:26]} c5 {[%emt 0:00:11]} 7. Nge2 {[%emt 0:00:17]} Qb6 {[%emt 0:00:31]} 8. Na4 {[%emt 0:01:40]} Qa5+ {[%emt 0:00:36]} 9. Bd2 {[%emt 0:00:08]} Qa6 {[%emt 0:06:26]} 10. Nxd4 {[%emt 0:00:19]} Bxd4 {[%emt 0:00:19]} 11. Nc3 {[%emt 0:01:11]} Bd7 {[%emt 0:02:25]} 12. Bd3 {[%emt 0:00:14]} Bg7 {[%emt 0:02:12]} 13. O-O {[%emt 0:04:49]} Nf6 {[%emt 0:00:13]} 14. f4 {[%emt 0:01:18]} O-O {[%emt 0:00:57]} 15. h3 {[%emt 0:06:26]} e6 {[%emt 0:04:56]} 16. Qf3 {[%emt 0:05:59]} exd5 {[%emt 0:12:35]} 17. exd5 {[%emt 0:00:48]} h6 {[%emt 0:04:36]} 18. g4 {[%emt 0:09:23]} Qb6 {[%emt 0:04:33]} 19. Rab1 {[%emt 0:04:15]} Rae8 {[%emt 0:03:14]} 20. Kh1 {[%emt 0:10:42]} Nh7 {[%emt 0:06:23]} 21. f5 {[%emt 0:10:13]} g5 {[%emt 0:00:21]} 22. Ne4 {[%emt 0:08:12]} Nf6 {[%emt 0:04:11]} 23. Ng3 {[%emt 0:10:40]} Qd8 {[%emt 0:03:37]} 24. Bc3 {[%emt 0:02:07]} a6 {[%emt 0:05:53]} 25. Bc2 {[%emt 0:12:46]} b5 {[%emt 0:01:05]} 26. b3 {[%emt 0:00:52]} b4 {[%emt 0:02:06]} 27. Bxf6 {[%emt 0:01:39]} Bxf6 {[%emt 0:00:25]} 28. Ne4 {[%emt 0:00:11]} Bc8 {[%emt 0:00:35]} 29. Rbe1 {[%emt 0:01:09]} Kg7 {[%emt 0:07:58]} 30. Re2 {[%emt 0:02:05]} Re5 {[%emt 0:01:32]} 31. Rfe1 {[%emt 0:01:13]} Rfe8 {[%emt 0:00:18]} 32. Qg3 {[%emt 0:01:27]} a5 {[%emt 0:03:09]} 33. Kg2 {[%emt 0:00:47]} Ba6 {[%emt 0:03:54]} 34. Qd3 {[%emt 0:02:36]} Bc8 {[%emt 0:02:05]} 35. Qf3 {[%emt 0:00:56]} Ba6 {[%emt 0:00:31]} 36. Qd3 {[%emt 0:00:35]} Bc8 {[%emt 0:00:06]} 37. Qf3 {[%emt 0:01:17]} Ba6 {[%emt 0:00:06]} 38. Qd3 1/2-1/2

[Event "41st Jacques-Lemans-Open 2022"]
[Site "St. Veit/Glan"]
[Date "2022.07.10"]
[Round "3.4"]
[White "Miazhynski, Yuri"]
[Black "Hresc, Vladimir"]
[Result "1-0"]
[ECO "C54"]
[WhiteElo "2166"]
[BlackElo "2308"]
[Annotator "RC"]
[PlyCount "71"]
[EventDate "2022.07.09"]
[EventType "swiss"]
[EventCountry "AUT"]
[SourceTitle "playchess.com"]
[Source "ChessBase"]
[SourceQuality "1"]
[TimeControl "40/5400+30:1800+30"]

1. e4 {[%emt 0:00:05]} e5 {[%emt 0:00:10]} 2. Nf3 {[%emt 0:00:44]} Nc6 {[%emt 0:00:10]} 3. Bc4 {[%emt 0:00:09]} Bc5 {[%emt 0:00:10]} 4. c3 {[%emt 0:00:26]} Nf6 {[%emt 0:00:10]} 5. d3 {[%emt 0:00:14]} d6 {[%emt 0:00:57]} 6. O-O {[%emt 0:00:24]} h6 {[%emt 0:03:30]} 7. b4 {[%emt 0:08:56]} Bb6 {[%emt 0:00:14]} 8. a4 {[%emt 0:00:25]} a5 {[%emt 0:01:33]} 9. b5 {[%emt 0:00:32]} Ne7 {[%emt 0:00:08]} 10. Be3 {[%emt 0:00:56]} Bxe3 {[%emt 0:01:19]} 11. fxe3 {[%emt 0:00:04]} Be6 {[%emt 0:01:25]} 12. Bxe6 {[%emt 0:04:45]} fxe6 {[%emt 0:00:03]} 13. Qb3 {[%emt 0:01:01]} Qd7 {[%emt 0:00:17]} 14. Nbd2 {[%emt 0:00:43]} Ng6 {[%emt 0:02:52]} 15. d4 {[%emt 0:11:03]} O-O {[%emt 0:08:31]} 16. Qc2 {[%emt 0:17:56]} c6 {[%emt 0:21:23]} 17. Rab1 {[%emt 0:10:16]} Qc7 {[%emt 0:02:03]} 18. bxc6 {[%emt 0:14:47]} bxc6 {[%emt 0:02:15]} 19. dxe5 {[%emt 0:11:12]} dxe5 {[%emt 0:08:17]} 20. c4 {[%emt 0:01:04]} Qa7 {[%emt 0:08:17]} 21. c5 {[%emt 0:00:44]} Rab8 {[%emt 0:00:55]} 22. Qc4 {[%emt 0:00:28]} Kf7 {[%emt 0:02:49]} 23. Qc3 {[%emt 0:04:15]} Rxb1 {[%emt 0:01:32]} 24. Rxb1 {[%emt 0:00:19]} Nd7 {[%emt 0:00:00]} 25. Nb3 {[%emt 0:01:48]} Rb8 {[%emt 0:00:58]} 26. Rf1 {[%emt 0:00:24]} Ke8 {[%emt 0:07:58]} 27. h4 {[%emt 0:03:46]} Rb4 {[%emt 0:01:06]} 28. h5 {[%emt 0:00:49]} Ngf8 {[%emt 0:01:50]} 29. Nfd2 {[%emt 0:01:34]} Qa6 {[%emt 0:04:24]} 30. Rc1 {[%emt 0:01:05]} Rxa4 {[%emt 0:04:29]} 31. Nc4 {[%emt 0:00:08]} Ra2 {[%emt 0:02:07]} 32. Nbxa5 {[%emt 0:00:27]} Ke7 {[%emt 0:02:15]} 33. Rf1 {[%emt 0:02:06]} Qb5 {[%emt 0:08:35]} 34. Rf7+ {[%emt 0:01:15]} Kd8 {[%emt 0:00:35]} 35. Qd3 {[%emt 0:00:27]} Ra1+ {[%emt 0:02:17]} 36. Kh2 {[%emt 0:00:08]} 1-0

[Event "41st Jacques-Lemans-Open 2022"]
[Site "St. Veit/Glan"]
[Date "2022.07.10"]
[Round "3.5"]
[White "Kruckenhauser, Arthur"]
[Black "Lerch, Johannes"]
[Result "1/2-1/2"]
[ECO "C54"]
[WhiteElo "2303"]
[BlackElo "2222"]
[Annotator "RC"]
[PlyCount "39"]
[EventDate "2022.07.09"]
[EventType "swiss"]
[EventCountry "AUT"]
[SourceTitle "playchess.com"]
[Source "ChessBase"]
[SourceQuality "1"]
[TimeControl "40/5400+30:1800+30"]

1. e4 {[%emt 0:00:06]} e5 {[%emt 0:00:04]} 2. Nf3 {[%emt 0:00:15]} Nc6 {[%emt 0:00:05]} 3. Bc4 {[%emt 0:00:04]} Bc5 {[%emt 0:00:05]} 4. c3 {[%emt 0:00:03]} Nf6 {[%emt 0:00:05]} 5. d3 {[%emt 0:00:03]} d6 {[%emt 0:00:54]} 6. O-O {[%emt 0:00:22]} O-O {[%emt 0:01:24]} 7. Bb3 {[%emt 0:00:39]} h6 {[%emt 0:04:08]} 8. Re1 {[%emt 0:01:40]} Re8 {[%emt 0:01:52]} 9. Nbd2 {[%emt 0:01:45]} a6 {[%emt 0:01:17]} 10. Nf1 {[%emt 0:00:09]} Ba7 {[%emt 0:01:04]} 11. Ng3 {[%emt 0:01:32]} Ne7 {[%emt 0:03:49]} 12. h3 {[%emt 0:14:56]} Ng6 {[%emt 0:01:12]} 13. d4 {[%emt 0:00:30]} c6 {[%emt 0:03:25]} 14. Bc2 {[%emt 0:02:46]} Qc7 {[%emt 0:04:06]} 15. Be3 {[%emt 0:01:38]} Be6 {[%emt 0:11:52]} 16. Qd2 {[%emt 0:00:32]} Kh7 {[%emt 0:03:11]} 17. Nf5 {[%emt 0:03:05]} Ne7 {[%emt 0:10:22]} 18. g4 {[%emt 0:33:41]} Bxf5 {[%emt 0:11:49]} 19. exf5 {[%emt 0:00:29]} Ned5 {[%emt 0:06:16]} 20. Bb3 {[%emt 0:05:33]} 1/2-1/2

[Event "41st Jacques-Lemans-Open 2022"]
[Site "St. Veit/Glan"]
[Date "2022.07.10"]
[Round "3.6"]
[White "Schwab, Rene"]
[Black "Huber, Benedikt"]
[Result "1/2-1/2"]
[ECO "C68"]
[WhiteElo "2124"]
[BlackElo "2289"]
[Annotator "RC"]
[PlyCount "69"]
[EventDate "2022.07.09"]
[EventType "swiss"]
[EventCountry "AUT"]
[SourceTitle "playchess.com"]
[Source "ChessBase"]
[SourceQuality "1"]
[TimeControl "40/5400+30:1800+30"]

1. e4 {[%emt 0:00:30]} e5 {[%emt 0:00:14]} 2. Nf3 {[%emt 0:00:00]} Nc6 {[%emt 0:00:07]} 3. Bb5 {[%emt 0:00:02]} a6 {[%emt 0:00:08]} 4. Bxc6 {[%emt 0:00:06]} dxc6 {[%emt 0:00:07]} 5. d4 {[%emt 0:00:04]} exd4 {[%emt 0:00:08]} 6. Qxd4 {[%emt 0:00:08]} Qxd4 {[%emt 0:00:08]} 7. Nxd4 {[%emt 0:00:04]} Bd7 {[%emt 0:00:05]} 8. Be3 {[%emt 0:06:09]} O-O-O {[%emt 0:07:22]} 9. Nd2 {[%emt 0:01:30]} Re8 {[%emt 0:06:17]} 10. f3 {[%emt 0:01:53]} c5 {[%emt 0:10:23]} 11. Ne2 {[%emt 0:05:22]} f5 {[%emt 0:03:04]} 12. Kf2 {[%emt 0:00:50]} Nf6 {[%emt 0:00:52]} 13. Ng3 {[%emt 0:01:01]} fxe4 {[%emt 0:06:51]} 14. Ndxe4 {[%emt 0:03:38]} Nxe4+ {[%emt 0:00:20]} 15. Nxe4 {[%emt 0:00:05]} Bf5 {[%emt 0:00:05]} 16. Ng3 {[%emt 0:02:18]} Bxc2 {[%emt 0:00:24]} 17. Rac1 {[%emt 0:00:07]} Bg6 {[%emt 0:01:37]} 18. Bxc5 {[%emt 0:00:32]} Bxc5+ {[%emt 0:06:50]} 19. Rxc5 {[%emt 0:00:05]} Re7 {[%emt 0:00:19]} 20. Rd1 {[%emt 0:05:50]} Rd8 {[%emt 0:11:09]} 21. Rxd8+ {[%emt 0:13:46]} Kxd8 {[%emt 0:00:33]} 22. Nf5 {[%emt 0:11:53]} Bxf5 {[%emt 0:00:36]} 23. Rxf5 {[%emt 0:00:08]} b6 {[%emt 0:00:09]} 24. Rd5+ {[%emt 0:00:43]} Kc8 {[%emt 0:00:40]} 25. f4 {[%emt 0:01:21]} Rd7 {[%emt 0:03:21]} 26. Rxd7 {[%emt 0:00:18]} Kxd7 {[%emt 0:00:06]} 27. Ke3 {[%emt 0:01:06]} Ke6 {[%emt 0:00:53]} 28. Ke4 {[%emt 0:00:35]} g6 {[%emt 0:00:29]} 29. g4 {[%emt 0:24:05]} c6 {[%emt 0:19:56]} 30. Kd4 {[%emt 0:07:40]} a5 {[%emt 0:01:13]} 31. a3 {[%emt 0:05:38]} Kf6 {[%emt 0:04:32]} 32. Ke4 {[%emt 0:01:52]} Ke6 {[%emt 0:04:30]} 33. Kd4 {[%emt 0:04:15]} Kf6 {[%emt 0:01:02]} 34. Ke4 {[%emt 0:00:28]} Ke6 {[%emt 0:00:13]} 35. Kd4 {[%emt 0:01:44]} 1/2-1/2

[Event "41st Jacques-Lemans-Open 2022"]
[Site "St. Veit/Glan"]
[Date "2022.07.10"]
[Round "3.7"]
[White "Windhager, Hannes"]
[Black "Besner, Bernhard"]
[Result "1-0"]
[ECO "B01"]
[WhiteElo "2244"]
[BlackElo "2164"]
[Annotator "RC"]
[PlyCount "73"]
[EventDate "2022.07.09"]
[EventType "swiss"]
[EventCountry "AUT"]
[SourceTitle "playchess.com"]
[Source "ChessBase"]
[SourceQuality "1"]
[TimeControl "40/5400+30:1800+30"]

1. e4 {[%emt 0:00:03]} d5 {[%emt 0:00:05]} 2. exd5 {[%emt 0:00:10]} Qxd5 {[%emt 0:00:07]} 3. Nc3 {[%emt 0:00:07]} Qa5 {[%emt 0:00:07]} 4. d4 {[%emt 0:00:14]} Nf6 {[%emt 0:00:09]} 5. Nf3 {[%emt 0:00:20]} Bf5 {[%emt 0:00:35]} 6. Bc4 {[%emt 0:00:41]} e6 {[%emt 0:00:10]} 7. Bd2 {[%emt 0:00:56]} Bb4 {[%emt 0:00:10]} 8. a3 {[%emt 0:00:25]} Bxc3 {[%emt 0:00:08]} 9. Bxc3 {[%emt 0:00:05]} Qb6 {[%emt 0:00:07]} 10. d5 {[%emt 0:01:09]} Nbd7 {[%emt 0:00:43]} 11. O-O {[%emt 0:01:09]} O-O {[%emt 0:06:41]} 12. dxe6 {[%emt 0:00:17]} Bxe6 {[%emt 0:01:11]} 13. Bxe6 {[%emt 0:00:14]} Qxe6 {[%emt 0:01:48]} 14. Re1 {[%emt 0:00:25]} Qf5 {[%emt 0:00:31]} 15. Nh4 {[%emt 0:01:58]} Qg5 {[%emt 0:03:09]} 16. g3 {[%emt 0:01:13]} Rfe8 {[%emt 0:00:56]} 17. Qf3 {[%emt 0:07:14]} c6 {[%emt 0:02:22]} 18. Nf5 {[%emt 0:09:31]} Rxe1+ {[%emt 0:03:29]} 19. Rxe1 {[%emt 0:00:11]} Re8 {[%emt 0:00:47]} 20. Rxe8+ {[%emt 0:01:46]} Nxe8 {[%emt 0:00:14]} 21. h4 {[%emt 0:06:00]} Qc1+ {[%emt 0:09:05]} 22. Kg2 {[%emt 0:01:14]} Ndf6 {[%emt 0:04:10]} 23. Qe2 {[%emt 0:12:53]} g6 {[%emt 0:02:52]} 24. Ne7+ {[%emt 0:06:13]} Kf8 {[%emt 0:02:19]} 25. Nc8 {[%emt 0:03:25]} Nd5 {[%emt 0:05:18]} 26. Bd2 {[%emt 0:15:47]} Qxb2 {[%emt 0:01:41]} 27. c4 {[%emt 0:00:45]} Qd4 {[%emt 0:09:11]} 28. Bh6+ {[%emt 0:02:52]} Ng7 {[%emt 0:00:16]} 29. cxd5 {[%emt 0:00:21]} Qxd5+ {[%emt 0:00:16]} 30. Kh2 {[%emt 0:01:22]} Qe6 {[%emt 0:03:54]} 31. Qb2 {[%emt 0:07:00]} Qxc8 {[%emt 0:08:26]} 32. Qxg7+ {[%emt 0:00:09]} Ke7 {[%emt 0:00:33]} 33. Bg5+ {[%emt 0:00:07]} Ke6 {[%emt 0:02:31]} 34. Qf6+ {[%emt 0:00:19]} Kd5 {[%emt 0:00:14]} 35. Qxf7+ {[%emt 0:00:17]} Kc5 {[%emt 0:04:00]} 36. Be3+ {[%emt 0:00:34]} Kd6 {[%emt 0:03:02]} 37. Qxh7 {[%emt 0:00:18]} 1-0

[Event "41st Jacques-Lemans-Open 2022"]
[Site "St. Veit/Glan"]
[Date "2022.07.10"]
[Round "3.8"]
[White "Grafenberger, Dieter"]
[Black "Riemelmoser, Franz"]
[Result "0-1"]
[ECO "B40"]
[WhiteElo "1879"]
[BlackElo "2237"]
[Annotator "RC"]
[PlyCount "70"]
[EventDate "2022.07.09"]
[EventType "swiss"]
[EventCountry "AUT"]
[SourceTitle "playchess.com"]
[Source "ChessBase"]
[SourceQuality "1"]
[TimeControl "40/5400+30:1800+30"]

1. d4 {[%emt 0:00:04]} e6 {[%emt 0:00:14]} 2. Nf3 {[%emt 0:00:12]} c5 {[%emt 0:01:00]} 3. e4 {[%emt 0:01:14]} cxd4 {[%emt 0:00:08]} 4. c3 {[%emt 0:00:31]} Nf6 {[%emt 0:00:43]} 5. e5 {[%emt 0:03:50]} Nd5 {[%emt 0:00:09]} 6. Nxd4 {[%emt 0:01:53]} Qc7 {[%emt 0:04:31]} 7. Be2 {[%emt 0:07:38]} Qxe5 {[%emt 0:03:46]} 8. O-O {[%emt 0:00:23]} Nc6 {[%emt 0:00:26]} 9. Nf3 {[%emt 0:04:57]} Qc7 {[%emt 0:01:54]} 10. Bc4 {[%emt 0:03:34]} Nf6 {[%emt 0:01:14]} 11. Bg5 {[%emt 0:03:23]} Be7 {[%emt 0:04:23]} 12. Nbd2 {[%emt 0:02:12]} d5 {[%emt 0:00:42]} 13. Bb3 {[%emt 0:00:30]} h6 {[%emt 0:07:27]} 14. Bh4 {[%emt 0:02:36]} Nh5 {[%emt 0:00:01]} 15. Bxe7 {[%emt 0:00:35]} Nxe7 {[%emt 0:02:08]} 16. Nd4 {[%emt 0:00:45]} Nf6 {[%emt 0:00:13]} 17. Bc2 {[%emt 0:01:30]} O-O {[%emt 0:01:54]} 18. f4 {[%emt 0:01:16]} Nc6 {[%emt 0:00:24]} 19. g3 {[%emt 0:00:49]} Nxd4 {[%emt 0:03:24]} 20. cxd4 {[%emt 0:00:37]} Qb6 {[%emt 0:00:40]} 21. Nb3 {[%emt 0:00:44]} Bd7 {[%emt 0:00:27]} 22. Nc5 {[%emt 0:01:37]} Qxb2 {[%emt 0:06:24]} 23. Rf3 {[%emt 0:00:32]} Qb6 {[%emt 0:04:59]} 24. Rb3 {[%emt 0:00:07]} Qd6 {[%emt 0:01:09]} 25. Nxb7 {[%emt 0:01:50]} Qe7 {[%emt 0:00:22]} 26. Nc5 {[%emt 0:03:05]} Rab8 {[%emt 0:00:37]} 27. Rab1 {[%emt 0:00:35]} Rxb3 {[%emt 0:00:42]} 28. Rxb3 {[%emt 0:00:13]} Bc6 {[%emt 0:00:31]} 29. Qd3 {[%emt 0:00:27]} Ne4 {[%emt 0:01:54]} 30. a4 {[%emt 0:14:14]} g6 {[%emt 0:00:52]} 31. Nxe4 {[%emt 0:04:22]} dxe4 {[%emt 0:00:15]} 32. Qa6 {[%emt 0:01:12]} Bd5 {[%emt 0:04:12]} 33. Re3 {[%emt 0:01:46]} Qb4 {[%emt 0:00:27]} 34. Qe2 {[%emt 0:08:32]} Qxd4 {[%emt 0:00:19]} 35. Kg2 {[%emt 0:00:10]} Rb8 0-1

[Event "41st Jacques-Lemans-Open 2022"]
[Site "St. Veit/Glan"]
[Date "2022.07.10"]
[Round "3.9"]
[White "Moeller, Dustin"]
[Black "Higatsberger, Michael"]
[Result "1/2-1/2"]
[ECO "D30"]
[WhiteElo "2237"]
[BlackElo "2021"]
[Annotator "RC"]
[PlyCount "97"]
[EventDate "2022.07.09"]
[EventType "swiss"]
[EventCountry "AUT"]
[SourceTitle "playchess.com"]
[Source "ChessBase"]
[SourceQuality "1"]
[TimeControl "40/5400+30:1800+30"]

1. d4 {[%emt 0:00:03]} d5 {[%emt 0:00:08]} 2. c4 {[%emt 0:00:06]} e6 {[%emt 0:00:07]} 3. Nf3 {[%emt 0:00:05]} c5 {[%emt 0:00:10]} 4. cxd5 {[%emt 0:00:06]} exd5 {[%emt 0:00:05]} 5. g3 {[%emt 0:00:07]} Nc6 {[%emt 0:00:08]} 6. Bg2 {[%emt 0:00:06]} Nf6 {[%emt 0:00:13]} 7. O-O {[%emt 0:00:07]} Be7 {[%emt 0:00:04]} 8. dxc5 {[%emt 0:00:05]} Bxc5 {[%emt 0:00:08]} 9. a3 {[%emt 0:00:08]} O-O {[%emt 0:00:15]} 10. b4 {[%emt 0:00:05]} Be7 {[%emt 0:01:19]} 11. Nc3 {[%emt 0:00:19]} h6 {[%emt 0:12:39]} 12. Bb2 {[%emt 0:00:55]} Re8 {[%emt 0:06:48]} 13. Nd4 {[%emt 0:07:30]} Bf8 {[%emt 0:02:22]} 14. Rc1 {[%emt 0:10:57]} Ne5 {[%emt 0:15:35]} 15. Qb3 {[%emt 0:00:21]} Nc4 {[%emt 0:06:58]} 16. Rfd1 {[%emt 0:02:03]} Nxb2 {[%emt 0:03:39]} 17. Qxb2 {[%emt 0:00:00]} Bg4 {[%emt 0:05:04]} 18. h3 {[%emt 0:04:02]} Bh5 {[%emt 0:06:39]} 19. Nf5 {[%emt 0:00:50]} Bg6 {[%emt 0:02:41]} 20. Ne3 {[%emt 0:00:30]} d4 {[%emt 0:08:22]} 21. Nb5 {[%emt 0:02:46]} Rxe3 {[%emt 0:02:00]} 22. fxe3 {[%emt 0:00:38]} Qe8 {[%emt 0:00:11]} 23. Nxd4 {[%emt 0:02:21]} Qxe3+ {[%emt 0:00:06]} 24. Kh2 {[%emt 0:00:27]} Bd6 {[%emt 0:05:41]} 25. Nf3 {[%emt 0:00:16]} Ne4 {[%emt 0:00:07]} 26. Rxd6 {[%emt 0:08:54]} Nxd6 {[%emt 0:00:06]} 27. Rd1 {[%emt 0:10:41]} Nc4 {[%emt 0:03:59]} 28. Qd4 {[%emt 0:01:52]} Qxd4 {[%emt 0:08:05]} 29. Rxd4 {[%emt 0:00:06]} Nxa3 {[%emt 0:00:08]} 30. Ne5 {[%emt 0:00:11]} Nc2 {[%emt 0:02:25]} 31. Rd7 {[%emt 0:02:53]} Nxb4 {[%emt 0:05:06]} 32. Nxg6 {[%emt 0:00:06]} fxg6 {[%emt 0:00:12]} 33. Rxb7 {[%emt 0:00:04]} Na6 {[%emt 0:00:35]} 34. Bd5+ {[%emt 0:07:48]} Kh7 {[%emt 0:00:06]} 35. e4 {[%emt 0:00:22]} Re8 {[%emt 0:01:55]} 36. Kg2 {[%emt 0:08:42]} Nc5 {[%emt 0:00:05]} 37. Rb4 {[%emt 0:00:04]} Re7 {[%emt 0:01:36]} 38. Kf3 {[%emt 0:00:31]} Nd3 {[%emt 0:00:45]} 39. Ra4 {[%emt 0:00:27]} g5 {[%emt 0:00:08]} 40. Ke3 {[%emt 0:00:36]} Ne5 {[%emt 0:00:40]} 41. Kd4 {[%emt 0:33:08]} g6 {[%emt 0:31:20]} 42. Kc5 {[%emt 0:02:53]} Kg7 {[%emt 0:01:18]} 43. Ra6 {[%emt 0:06:49]} h5 {[%emt 0:00:09]} 44. Kd6 {[%emt 0:02:00]} Kf6 {[%emt 0:00:11]} 45. Ra1 {[%emt 0:03:10]} Rd7+ {[%emt 0:00:00]} 46. Kc5 {[%emt 0:00:00]} Rc7+ {[%emt 0:00:00]} 47. Kd6 {[%emt 0:00:00]} Rd7+ {[%emt 0:00:00]} 48. Kc5 {[%emt 0:00:00]} Rc7+ {[%emt 0:00:00]} 49. Kd6 {[%emt 0:00:00]} 1/2-1/2

[Event "41st Jacques-Lemans-Open 2022"]
[Site "St. Veit/Glan"]
[Date "2022.07.10"]
[Round "3.10"]
[White "Schernthaner, David"]
[Black "Ernst, Robert"]
[Result "1/2-1/2"]
[ECO "B48"]
[WhiteElo "2319"]
[BlackElo "2001"]
[Annotator "RC"]
[PlyCount "94"]
[EventDate "2022.07.09"]
[EventType "swiss"]
[EventCountry "AUT"]
[SourceTitle "playchess.com"]
[Source "ChessBase"]
[SourceQuality "1"]
[TimeControl "40/5400+30:1800+30"]

1. e4 {[%emt 0:00:02]} c5 {[%emt 0:00:10]} 2. Nf3 {[%emt 0:00:05]} e6 {[%emt 0:00:11]} 3. d4 {[%emt 0:00:06]} cxd4 {[%emt 0:00:09]} 4. Nxd4 {[%emt 0:00:05]} Nc6 {[%emt 0:00:11]} 5. Nc3 {[%emt 0:00:36]} Qc7 {[%emt 0:00:13]} 6. Be3 {[%emt 0:00:15]} a6 {[%emt 0:00:13]} 7. Qd2 {[%emt 0:00:33]} b5 {[%emt 0:01:15]} 8. O-O-O {[%emt 0:01:51]} Nf6 {[%emt 0:06:40]} 9. f3 {[%emt 0:02:29]} Bb4 {[%emt 0:04:49]} 10. Nb3 {[%emt 0:11:10]} d5 {[%emt 0:12:38]} 11. a3 {[%emt 0:10:58]} Bxc3 {[%emt 0:01:14]} 12. Qxc3 {[%emt 0:02:00]} Bb7 {[%emt 0:08:29]} 13. Bg5 {[%emt 0:06:34]} dxe4 {[%emt 0:01:26]} 14. Bxf6 {[%emt 0:03:31]} Qf4+ {[%emt 0:00:49]} 15. Kb1 {[%emt 0:00:19]} Qxf6 {[%emt 0:00:16]} 16. Qxf6 {[%emt 0:01:50]} gxf6 {[%emt 0:00:12]} 17. Nc5 {[%emt 0:00:02]} Rd8 {[%emt 0:02:52]} 18. Be2 {[%emt 0:04:09]} Bc8 {[%emt 0:05:53]} 19. Rxd8+ {[%emt 0:01:50]} Kxd8 {[%emt 0:01:18]} 20. Nxe4 {[%emt 0:00:17]} Ke7 {[%emt 0:08:35]} 21. Rd1 {[%emt 0:01:40]} Rg8 {[%emt 0:14:15]} 22. Bf1 {[%emt 0:00:35]} f5 {[%emt 0:03:18]} 23. Nc5 {[%emt 0:00:51]} Rd8 {[%emt 0:00:21]} 24. Rxd8 {[%emt 0:01:40]} Nxd8 {[%emt 0:00:12]} 25. Kc1 {[%emt 0:01:26]} Kd6 {[%emt 0:00:40]} 26. b4 {[%emt 0:02:46]} e5 {[%emt 0:01:50]} 27. Kd2 {[%emt 0:03:26]} Ne6 {[%emt 0:01:07]} 28. Nxe6 {[%emt 0:05:57]} Bxe6 {[%emt 0:00:10]} 29. Bd3 {[%emt 0:00:15]} h6 {[%emt 0:00:59]} 30. g3 {[%emt 0:01:34]} f6 {[%emt 0:01:50]} 31. Ke3 {[%emt 0:01:11]} Kc6 {[%emt 0:01:33]} 32. c3 {[%emt 0:00:52]} Kd6 {[%emt 0:03:32]} 33. Bc2 {[%emt 0:01:24]} Kc6 {[%emt 0:03:14]} 34. f4 {[%emt 0:01:36]} Kd6 {[%emt 0:00:40]} 35. a4 {[%emt 0:02:53]} Bd7 {[%emt 0:04:05]} 36. a5 {[%emt 0:02:07]} Be6 {[%emt 0:00:27]} 37. Bd1 {[%emt 0:01:51]} Bd5 {[%emt 0:02:21]} 38. Be2 {[%emt 0:01:16]} Kc6 {[%emt 0:06:07]} 39. Bd3 {[%emt 0:02:22]} Be6 {[%emt 0:00:18]} 40. h3 {[%emt 0:00:48]} h5 {[%emt 0:05:04]} 41. Be2 {[%emt 0:32:51]} Bf7 {[%emt 0:30:17]} 42. Bf3+ {[%emt 0:00:13]} Kc7 {[%emt 0:00:00]} 43. h4 {[%emt 0:00:00]} Kb8 {[%emt 0:00:00]} 44. Be2 {[%emt 0:00:00]} Kc7 {[%emt 0:00:00]} 45. Bd3 {[%emt 0:00:00]} Be6 {[%emt 0:00:00]} 46. Bc2 {[%emt 0:00:00]} Kc6 {[%emt 0:00:00]} 47. Bd1 {[%emt 0:00:00]} Bf7 {[%emt 0:00:00]} 1/2-1/2